fUST/lending_fUST_20240325
["ID","MTS","AMOUNT","RATE_DAILY","PERIOD"]
[320450540,1711377744125,-288.47550235,0.00022337,2]
[320450541,1711377744147,-2268.51777052,0.00022337,2]
[320450543,1711377780185,313.08414454,0.00020472,2]
[320450544,1711377780249,500.0,0.00020472,2]
[320450545,1711377785887,18197.04854381,0.00020472,2]
[320450546,1711377794310,500.0,0.00020472,2]
[320450547,1711377801073,154.95351395,0.00020472,2]
[320450548,1711377810383,500.0,0.00020472,2]
[320450549,1711377812274,1687.1730458,0.00020917,2]
[320450550,1711377815097,154.95351395,0.00020472,2]
[320450551,1711377821334,-535.34594372,0.00021407,2]
[320450552,1711377821358,-180.22166268,0.00021407,2]
[320450553,1711377821382,-685.88747989,0.00021407,2]
[320450554,1711377821402,-1478.45909339,0.00021407,2]
[320450555,1711377821423,-683.96804349,0.00021408,2]
[320450556,1711377821444,-553.11777683,0.00021408,2]
[320450559,1711377828347,500.0,0.00020472,2]
[320450560,1711377830353,11679.7022348,0.00020829,2]
[320450564,1711377835111,155.51324749,0.00020472,2]
[320450565,1711377846260,500.0,0.00020472,2]
[320450573,1711377866273,500.0,0.00020472,2]
[320450574,1711377886289,500.0,0.00020472,2]
[320450575,1711377900168,8166.7427351,0.00020566,2]
[320450577,1711377904393,500.0,0.00020472,2]
[320450578,1711377936105,628.1476084,0.00020398,2]
[320450580,1711377966983,1895.517105,0.00020394,2]
[320450586,1711377978855,24900.0,0.00020639,2]
[320450592,1711377992864,176.543375,0.00020116,2]
[320450597,1711378056662,1028.12203766,0.00021191,2]
[320450607,1711378102879,2132.28070195,0.00021075,2]
[320450611,1711378132490,1991.2395624,0.00020282,2]
[320450613,1711378151837,9210.97862303,0.00026018,3]
[320450614,1711378151929,329.6208056,0.0002028,2]
[320450615,1711378158907,25458.43417986,0.00021174,2]
[320450616,1711378183340,3000.0,0.00020276,2]
[320450639,1711378226009,1306.6945457,0.00020271,2]
[320450663,1711378231784,-160.87070723,0.00021265,2]
[320450664,1711378231793,-2377.71211598,0.00021265,2]
[320450734,1711378238044,-154.95351395,0.00021264,2]
[320450736,1711378238054,-372.02923072,0.00021265,2]
[320450738,1711378238064,-3444.03044866,0.00021265,2]
[320450740,1711378238073,-322.828959,0.00021265,2]
[320450742,1711378238082,-275.7283,0.00021266,2]
[320450744,1711378238091,-1.99956963,0.00021266,2]
[320451082,1711378240421,-535.34594372,0.00021264,2]
[320451086,1711378240431,-814.54236793,0.00021266,2]
[320451089,1711378240442,-154.95351395,0.00021266,2]
[320451092,1711378240453,-239.49533086,0.00021267,2]
[320451094,1711378240463,-302.59359524,0.00021267,2]
[320451096,1711378240474,-187.78507347,0.00021268,2]
[320451097,1711378240485,-180.22166268,0.00021268,2]
[320451099,1711378240495,-154.95351395,0.00021268,2]
[320451101,1711378240506,-192.09614906,0.00021268,2]
[320451103,1711378240517,-288.47550235,0.00021269,2]
[320451105,1711378240528,-436.81265876,0.00021269,2]
[320451108,1711378240545,-3029.63424504,0.00021269,2]
[320451110,1711378240558,-427.17499991,0.00021269,2]
[320451112,1711378240573,-2086.66330066,0.00021269,2]
[320451113,1711378240584,-936.78669934,0.00021269,2]
[320451582,1711378246555,-435.45196325,0.00021263,2]
[320451584,1711378246565,-683.96804349,0.00021264,2]
[320451586,1711378246575,-1888.81529834,0.00021264,2]
[320451588,1711378246585,-14564.2822188,0.00021269,2]
[320451591,1711378246597,-7229.27612848,0.00021269,2]
[320452682,1711378287185,6890.15,0.00027244,30]
[320452715,1711378335190,-154.95351395,0.00021258,2]
[320452716,1711378335214,-435.45196325,0.00021258,2]
[320452717,1711378335234,-3444.03044866,0.00021259,2]
[320452718,1711378335255,-302.59359524,0.00021259,2]
[320452719,1711378335275,-154.95351395,0.00021259,2]
[320452720,1711378335295,-187.78507347,0.00021259,2]
[320452721,1711378335316,-1888.81529834,0.00021259,2]
[320452722,1711378335336,-816.54193756,0.0002126,2]
[320452723,1711378335356,-1301.46396623,0.0002126,2]
[320452724,1711378335376,-288.47550235,0.00021261,2]
[320452725,1711378335398,-160.87070723,0.00021261,2]
[320452726,1711378335418,-3509.19508101,0.00021261,2]
[320452727,1711378335438,-5543.47254561,0.00021261,2]
[320452728,1711378335458,-205.27707627,0.00021263,2]
[320452729,1711378335478,-154.95351395,0.00021264,2]
[320452730,1711378335498,-210.33950346,0.00021264,2]
[320452731,1711378335517,-1922.02642136,0.00021264,2]
[320452732,1711378335537,-156.44769528,0.00021264,2]
[320452733,1711378335557,-154.95351395,0.00021265,2]
[320452734,1711378335577,-43823.59048364,0.00021266,2]
[320452735,1711378335598,-199.95374945,0.00021267,2]
[320452736,1711378335618,-322.48199961,0.00021267,2]
[320452737,1711378335642,-181.85167617,0.00021267,2]
[320452738,1711378335662,-852.41043106,0.00021267,2]
[320452739,1711378335683,-309.82467725,0.00021267,2]
[320452740,1711378335703,-311.39196463,0.00021267,2]
[320452741,1711378335724,-205.99931004,0.00021267,2]
[320452742,1711378335749,-157.30342708,0.00021267,2]
[320452743,1711378335769,-203.57532072,0.00021267,2]
[320452744,1711378335789,-707.98405147,0.00021267,2]
[320452745,1711378335810,-500.0,0.0002127,2]
[320452746,1711378335831,-500.0,0.0002127,2]
[320452747,1711378335852,-439.19790727,0.0002127,2]
[320452748,1711378335985,-500.0,0.0002127,2]
[320452749,1711378336005,-500.0,0.0002127,2]
[320452750,1711378336025,-388.48704137,0.0002127,2]
[320452751,1711378336046,-690.87729421,0.0002139,2]
[320452752,1711378336067,-287.46979491,0.00021403,2]
[320452755,1711378372656,15226.63521217,0.00026018,3]
[320452762,1711378401329,655.71734247,0.00027018,10]
[320452763,1711378404583,1475.2229044,0.00021075,2]
[320452765,1711378417058,-1478.45909339,0.00021254,2]
[320452766,1711378417079,-2605.4070795,0.00021254,2]
[320452767,1711378417099,-471.05027514,0.00021255,2]
[320452768,1711378417119,-617.73703242,0.00021255,2]
[320452769,1711378417144,-864.38002108,0.00021255,2]
[320452770,1711378417164,-154.95351395,0.00021255,2]
[320452771,1711378417185,-154.95351395,0.00021256,2]
[320452772,1711378417206,-780.33195473,0.00021256,2]
[320452773,1711378417231,-154.95351395,0.00021256,2]
[320452774,1711378417254,-154.95351395,0.00021257,2]
[320452775,1711378417276,-154.95351395,0.00021257,2]
[320452776,1711378417296,-436.81265876,0.000214,2]
[320452777,1711378417319,-192.09614906,0.00021401,2]
[320452778,1711378417340,-154.95351395,0.00021401,2]
[320452779,1711378417365,-154.95351395,0.00021401,2]
[320452780,1711378417388,-155.16055914,0.00021402,2]
[320452781,1711378417414,-38.89057913,0.00021402,2]
[320452786,1711378438033,2607.66926261,0.0002,2]
[320452790,1711378470333,500.0,0.0002,2]
[320452792,1711378482966,21403.76517632,0.00021,2]
[320452793,1711378483003,161.04068002,0.00021,2]
[320452794,1711378483770,-816.54193756,0.00021348,2]
[320452795,1711378483790,-154.95351395,0.00021348,2]
[320452796,1711378483810,-1297.50454849,0.00021348,2]
[320452797,1711378486329,500.0,0.0002,2]
[320452798,1711378514404,169.93657,0.0002065,2]
[320454536,1711378661966,3000.0,0.00020984,2]
[320454804,1711378799930,5000.0,0.00027018,10]
[320454805,1711378807479,154.95351395,0.00020984,2]
[320454806,1711378808127,357.50734357,0.00027018,10]
[320454807,1711378814619,3928.03328864,0.00020984,2]
[320454808,1711378815181,250.68884351,0.00018089,2]
[320454809,1711378818466,500.0,0.00020984,2]
[320454810,1711378821548,156.01843567,0.00020984,2]
[320454811,1711378825450,155.04648605,0.00020984,2]
[320454812,1711378825825,5000.0,0.00027018,10]
[320454813,1711378837555,260.61907514,0.00020984,2]
[320454814,1711378850465,313.08414454,0.00020984,2]
[320454815,1711378853759,5172.41504345,0.00020774,2]
[320454816,1711378854001,200.0,0.00020828,2]
[320454817,1711378858012,10642.3135168,0.00020822,2]
[320454818,1711378858373,500.0,0.00020984,2]
[320454819,1711378873743,578.78658384,0.00020774,2]
[320454820,1711378928198,250.0,0.00020756,2]
[320454821,1711378937744,24900.0,0.00020771,2]
[320454822,1711378994480,159.823354,0.00020372,2]
[320454823,1711379022771,1274.10829,0.00020727,2]
[320454824,1711379039312,150.0,0.00021,2]
[320454826,1711379098190,11866.6947951,0.00020612,2]
[320454925,1711379235011,65764.21075922,0.00021,3]
[320454939,1711379299423,1703.5374323,0.00021,2]
[320454940,1711379309061,1230.46959353,0.00019154,2]
[320455029,1711379432175,-250.0,0.0002111,2]
[320455031,1711379432185,-864.38002108,0.00021231,2]
[320455033,1711379432194,-281.08704013,0.00021231,2]
[320455035,1711379432203,-160.87070723,0.00021231,2]
[320455037,1711379432213,-1922.02642136,0.00021231,2]
[320455039,1711379432222,-156.44769528,0.00021231,2]
[320455040,1711379432231,-920.79514438,0.00021231,2]
[320455042,1711379432241,-154.98450155,0.00021231,2]
[320455044,1711379432250,-154.98450155,0.00021231,2]
[320455046,1711379432260,-291.35313108,0.00021232,2]
[320455048,1711379432271,-170.58466675,0.00021232,2]
[320455050,1711379432282,-205.27707627,0.00021232,2]
[320455052,1711379432292,-1301.46396623,0.00021232,2]
[320455054,1711379432303,-154.98450155,0.00021233,2]
[320455056,1711379432313,-154.98450155,0.00021233,2]
[320455058,1711379432323,-322.828959,0.00021233,2]
[320455060,1711379432332,-154.98450155,0.00021233,2]
[320455062,1711379432341,-5543.47254561,0.00021233,2]
[320455064,1711379432350,-2605.4070795,0.00021233,2]
[320455066,1711379432359,-288.47550235,0.00021234,2]
[320455069,1711379432368,-435.45196325,0.00021234,2]
[320455072,1711379432391,-535.34594372,0.00021234,2]
[320455074,1711379432400,-3444.03044866,0.00021234,2]
[320455076,1711379432410,-683.96804349,0.00021235,2]
[320455078,1711379432419,-270.55201027,0.00021235,2]
[320455080,1711379432428,-187.30483325,0.00021235,2]
[320455082,1711379432438,-302.59359524,0.00021235,2]
[320455084,1711379432447,-685.88747989,0.00021235,2]
[320455085,1711379432458,-211.33899684,0.00021236,2]
[320455086,1711379432468,-154.98450155,0.00021237,2]
[320455088,1711379432478,-931.6812301,0.00021237,2]
[320455090,1711379432488,-1573.60018062,0.00021237,2]
[320455092,1711379432498,-154.98450155,0.00021238,2]
[320455094,1711379432507,-204.80548194,0.00021238,2]
[320455096,1711379432517,-300.0,0.00021242,2]
[320455098,1711379432529,-3000.0,0.00021281,2]
[320455100,1711379432538,-1693.06966709,0.00021309,2]
[320455103,1711379432549,-2332.9695451,0.00021352,2]
[320455105,1711379432564,-187.78507347,0.0002148,2]
[320455107,1711379432581,-166.666666,0.00021918,2]
[320455109,1711379432591,-877.46470654,0.0002217,2]
[320455111,1711379432602,-157.74893899,0.00022429,2]
[320455113,1711379432612,-166.666666,0.00022431,2]
[320455115,1711379432622,-1456.57542894,0.00022513,2]
[320455117,1711379432633,-176.51690717,0.00022612,2]
[320455119,1711379432643,-161.83877015,0.00022612,2]
[320455121,1711379432654,-174.57033216,0.00022612,2]
[320455123,1711379432663,-155.22590531,0.00022612,2]
[320455125,1711379432673,-201.58411021,0.00022612,2]
[320455127,1711379432682,-300.5700938,0.00022612,2]
[320455129,1711379432693,-2476.61654689,0.00022612,2]
[320455148,1711379432856,-309.81411154,0.00022612,2]
[320455150,1711379432866,-309.76768121,0.00022612,2]
[320455152,1711379432876,-205.67956212,0.00022612,2]
[320455155,1711379432886,-309.79863167,0.00022612,2]
[320455157,1711379432897,-294.96529607,0.00022612,2]
[320455159,1711379432906,-214.6895479,0.00022612,2]
[320455161,1711379432916,-368.85641746,0.00022613,2]
[320455163,1711379432925,-1377.28051323,0.00022613,2]
[320455165,1711379432934,-166.666666,0.00022944,2]
[320455167,1711379432943,-190.03181619,0.00023091,2]
[320455169,1711379432952,-1417.46301615,0.00023092,2]
[320455171,1711379432961,-163.099968,0.00023288,2]
[320455173,1711379432970,-166.666666,0.00023456,2]
[320455174,1711379432979,-166.666666,0.00023969,2]
[320455177,1711379432989,-1456.57542893,0.00024068,2]
[320455179,1711379432999,-1230.46959353,0.00024154,2]
[320455181,1711379433009,-155.55352576,0.00024311,2]
[320455183,1711379433018,-3245.25864532,0.00024312,2]
[320455185,1711379433030,-309.79863167,0.00024317,2]
[320455187,1711379433039,-1134.89436584,0.00024318,2]
[320455188,1711379433048,-166.666666,0.00024482,2]
[320455190,1711379433058,-380.0,0.00024658,2]
[320455192,1711379433067,-156.17955309,0.00024999,2]
[320455194,1711379433077,-190.67015884,0.00024999,2]
[320455196,1711379433086,-15127.12010707,0.00025,2]
[320455198,1711379433095,-721.44631542,0.00025,2]
[320455200,1711379433104,-1009.12752444,0.00025,2]
[320455202,1711379433113,-1456.57542893,0.00025624,2]
[320455204,1711379433123,-154.8915749,0.00026,2]
[320455206,1711379433132,-2000.0,0.00026134,2]
[320455208,1711379433142,-993.94020786,0.0002624,2]
[320455210,1711379433151,-2000.0,0.00026311,2]
[320455212,1711379433163,-2000.0,0.00026488,2]
[320455214,1711379433173,-2000.0,0.00026665,2]
[320455217,1711379433184,-2000.0,0.00026842,2]
[320455219,1711379433193,-1619.58144244,0.00027,2]
[320455221,1711379433203,-196.35977791,0.00027,2]
[320455223,1711379433213,-2000.0,0.00027019,2]
[320455225,1711379433223,-1184.69009839,0.00027179,2]
[320455332,1711379438201,-154.98450155,0.00021109,2]
[320455334,1711379438211,-395.68057894,0.00022612,2]
[320455336,1711379438221,-271.88533054,0.00027179,2]
[320455338,1711379438230,-573.06382949,0.00027196,2]
[320455404,1711379440150,-1426.93617051,0.00027196,2]
[320455406,1711379440159,-2000.0,0.00027373,2]
[320455408,1711379440169,-5504.60950064,0.00027374,5]
[320455410,1711379440178,-8469.03392062,0.00027388,2]
[320455412,1711379440188,-500.0,0.00027391,2]
[320455414,1711379440197,-369.82831357,0.00027391,2]
[320455416,1711379440207,-500.0,0.00027391,2]
[320455418,1711379440217,-500.0,0.00027391,2]
[320455420,1711379440228,-500.0,0.00027391,2]
[320455433,1711379440350,-426.41841064,0.00027391,2]
[320455435,1711379440362,-500.0,0.00027391,2]
[320455437,1711379440372,-500.0,0.00027391,2]
[320455439,1711379440384,-439.90465509,0.00027391,2]
[320455441,1711379440394,-232.82654686,0.00027392,2]
[320455443,1711379440404,-779.72077743,0.00027392,2]
[320455445,1711379440414,-2749.7413467,0.00027393,2]
[320455447,1711379440424,-180.22166268,0.00027394,2]
[320455449,1711379440434,-154.95351395,0.00027394,2]
[320455451,1711379440444,-210.10675313,0.00027395,2]
[320455453,1711379440453,-239.49533086,0.00027395,2]
[320455455,1711379440463,-47377.43878495,0.00027396,2]
[320455457,1711379440472,-500.0,0.00027397,2]
[320455460,1711379440483,-500.0,0.00027397,2]
[320455462,1711379440492,-500.0,0.00027397,2]
[320455463,1711379440502,-500.0,0.00027397,2]
[320455466,1711379440511,-500.0,0.00027397,2]
[320455467,1711379440522,-500.0,0.00027397,2]
[320455470,1711379440534,-500.0,0.00027397,2]
[320455472,1711379440543,-500.0,0.00027397,2]
[320455473,1711379440553,-500.0,0.00027397,2]
[320455475,1711379440564,-500.0,0.00027397,2]
[320455477,1711379440573,-500.0,0.00027397,2]
[320455479,1711379440582,-500.0,0.00027397,2]
[320455481,1711379440591,-500.0,0.00027397,2]
[320455483,1711379440603,-500.0,0.00027397,2]
[320455485,1711379440612,-500.0,0.00027397,2]
[320455487,1711379440621,-500.0,0.00027397,2]
[320455489,1711379440630,-500.0,0.00027397,2]
[320455491,1711379440638,-500.0,0.00027397,2]
[320455493,1711379440648,-500.0,0.00027397,2]
[320455495,1711379440659,-500.0,0.00027397,2]
[320455497,1711379440668,-500.0,0.00027397,2]
[320455499,1711379440678,-500.0,0.00027397,2]
[320455501,1711379440688,-500.0,0.00027397,2]
[320455503,1711379440698,-500.0,0.00027397,2]
[320455505,1711379440707,-500.0,0.00027397,2]
[320455507,1711379440716,-500.0,0.00027397,2]
[320455509,1711379440726,-500.0,0.00027397,2]
[320455511,1711379440736,-500.0,0.00027397,2]
[320455513,1711379440745,-500.0,0.00027397,2]
[320455515,1711379440754,-500.0,0.00027397,2]
[320455517,1711379440763,-500.0,0.00027397,2]
[320455519,1711379440772,-500.0,0.00027397,2]
[320455521,1711379440784,-500.0,0.00027397,2]
[320455523,1711379440793,-180.97872567,0.00027397,2]
[320455525,1711379440802,-500.0,0.00027397,2]
[320455527,1711379440812,-500.0,0.00027397,2]
[320455529,1711379440821,-500.0,0.00027397,2]
[320455531,1711379440830,-500.0,0.00027397,2]
[320455533,1711379440840,-500.0,0.00027397,2]
[320455535,1711379440849,-500.0,0.00027397,2]
[320455537,1711379440859,-500.0,0.00027397,2]
[320455539,1711379440868,-500.0,0.00027397,2]
[320455541,1711379440877,-500.0,0.00027397,2]
[320455543,1711379440887,-500.0,0.00027397,2]
[320455545,1711379440897,-500.0,0.00027397,2]
[320455547,1711379440906,-402.68280327,0.00027397,2]
[320455549,1711379440915,-677.7441716,0.00027397,2]
[320455551,1711379440925,-2000.0,0.0002755,2]
[320455553,1711379440934,-2000.0,0.00027727,2]
[320455555,1711379440943,-620.40927149,0.00027736,2]
[320455557,1711379440952,-2000.0,0.00027904,2]
[320455559,1711379440962,-3248.787254,0.00028081,2]
[320455561,1711379440971,-304.95131354,0.00028689,2]
[320455563,1711379440982,-302.14785455,0.00028689,2]
[320455565,1711379440994,-1456.57542893,0.00028734,2]
[320455567,1711379441004,-3110.80223442,0.00028734,2]
[320455569,1711379441014,-150.98490151,0.00028765,2]
[320455571,1711379441024,-414.08642532,0.00028787,2]
[320455573,1711379441036,-158.71315482,0.00028787,2]
[320455575,1711379441046,-155.64112387,0.0002879,2]
[320455577,1711379441055,-183.1544279,0.0002879,2]
[320455579,1711379441064,-255.02565286,0.0002879,2]
[320455581,1711379441074,-1891.87494755,0.00028834,10]
[320455583,1711379441083,-266630.4485311,0.00028834,60]
[320455876,1711379443249,-40595.18059968,0.00028834,60]
[320456193,1711379446314,-683.96804349,0.00027394,2]
[320456195,1711379446324,-604.13920452,0.00027394,2]
[320456197,1711379446333,-205.27707627,0.00028833,2]
[320456199,1711379446343,-1922.02642136,0.00028833,2]
[320456201,1711379446352,-1301.46396623,0.00028833,2]
[320456203,1711379446361,-156.44769528,0.00028833,2]
[320456205,1711379446370,-211.33899684,0.00028833,2]
[320456207,1711379446379,-154.98450155,0.00028833,2]
[320456209,1711379446388,-222.5253948,0.00028833,2]
[320456211,1711379446398,-2605.4070795,0.00028833,2]
[320456213,1711379446406,-534.40506024,0.00028833,2]
[320456214,1711379446416,-34741.19731153,0.00028834,60]
[320456275,1711379447059,-0.185004,0.00028834,60]
[320456276,1711379447076,-327.23598205,0.00028833,2]
[320456277,1711379447092,-593.55916233,0.00028833,2]
[320456278,1711379447104,-8599.86403767,0.00028834,60]
[320456279,1711379447117,-343951.78289442,0.00028834,60]
[320456280,1711379447128,-68640.0750262,0.00028834,2]
[320456281,1711379447138,-41336.09054089,0.00028834,60]
[320456282,1711379447151,-6648.46320146,0.00028834,60]
[320456283,1711379447176,-6450.09276471,0.00028834,60]
[320463944,1711379561508,150.0,0.00028018,30]
[320463948,1711379627390,2092.18390554,0.00028018,30]
[320463949,1711379641387,1035.54681816,0.00028018,30]
[320463955,1711379736538,-154.98450155,0.00021745,2]
[320463956,1711379736562,-154.98450155,0.00021746,2]
[320463957,1711379736585,-326.05635795,0.00021747,2]
[320463958,1711379736608,-154.98450155,0.00021747,2]
[320463959,1711379739663,154.9690062,0.00021744,2]
[320463974,1711379767643,-325.93484737,0.00021755,2]
[320463975,1711379767673,-154.9690062,0.00023188,2]
[320463976,1711379767697,-1922.02642136,0.00023189,2]
[320463977,1711379767721,-154.9690062,0.00023189,2]
[320463978,1711379767747,-3444.03044866,0.00023189,2]
[320463979,1711379767771,-154.9690062,0.00023189,2]
[320463980,1711379767795,-270.55201027,0.00023189,2]
[320463981,1711379767821,-322.828959,0.0002319,2]
[320463982,1711379767844,-291.35313108,0.0002319,2]
[320463983,1711379767867,-435.45196325,0.0002319,2]
[320463984,1711379767891,-211.33899684,0.0002319,2]
[320463985,1711379767915,-1573.60018062,0.00023191,2]
[320463986,1711379767938,-160.87070723,0.00023191,2]
[320463987,1711379767961,-154.98450155,0.00023192,2]
[320463988,1711379767983,-288.47550235,0.00023192,2]
[320463989,1711379768007,-157.74893899,0.00023192,2]
[320463990,1711379768030,-187.30483325,0.00023192,2]
[320463991,1711379768055,-180.22166268,0.00023193,2]
[320463992,1711379768198,-305.09083774,0.00023193,2]
[320463993,1711379768220,-239.49533086,0.00023194,2]
[320463994,1711379768241,-210.33950346,0.00023194,2]
[320463995,1711379768264,-2749.7413467,0.00023194,2]
[320463996,1711379768286,-281.08704013,0.00023195,2]
[320463997,1711379768309,-1826.6596149,0.00023195,2]
[320464007,1711379867682,-154.9690062,0.00023182,2]
[320464008,1711379867709,-154.9690062,0.00023183,2]
[320464009,1711379867731,-204.80548194,0.00023184,2]
[320464010,1711379867754,-239.49533086,0.00023187,2]
[320464011,1711379867776,-62.15568344,0.00023195,2]
[320464012,1711379867798,-213.94268819,0.000232,2]
[320464014,1711379896907,-248.02498931,0.00023085,2]
[320464017,1711380065124,325.93484737,0.00021755,2]
[320464020,1711380183271,-435.45196325,0.00023329,2]
[320464021,1711380183295,-157.74893899,0.0002333,2]
[320464022,1711380183318,-154.9690062,0.00023331,2]
[320464023,1711380183340,-154.9690062,0.00023332,2]
[320464024,1711380183364,-166.666666,0.00023333,2]
[320464025,1711380185722,291.35313108,0.00023328,2]
[320464026,1711380205110,-3444.03044866,0.00023622,2]
[320464027,1711380205133,-204.80548194,0.00023623,2]
[320464028,1711380205156,-154.9690062,0.00023623,2]
[320464029,1711380205180,-1573.60018062,0.00023623,2]
[320464030,1711380205205,-326.05635795,0.00023624,2]
[320464031,1711380205245,-625.9969173,0.00023625,2]
[320464038,1711380224193,202.29134353,0.0002368,2]
[320464040,1711380266273,-291.35313108,0.00023969,2]
[320464041,1711380266298,-166.666666,0.0002397,2]
[320464043,1711380318957,-166.666666,0.00024606,2]
[320464044,1711380318979,-1573.60018062,0.00024655,2]
[320464045,1711380319012,-176.543375,0.00024655,2]
[320464046,1711380319035,-250.0,0.00024716,2]
[320464047,1711380319060,-291.31508581,0.0002483,2]
[320464048,1711380319082,-198.37940502,0.0002483,2]
[320464049,1711380319104,-198.76585355,0.00024926,2]
[320464050,1711380319127,-438.64055908,0.00024926,2]
[320464051,1711380319150,-250.65840653,0.00024926,2]
[320464052,1711380319172,-279.92209527,0.00024926,2]
[320464053,1711380319194,-370.46028791,0.00024926,2]
[320464054,1711380319215,-155.18834754,0.00024927,2]
[320464055,1711380319237,-179.98414548,0.00024927,2]
[320464056,1711380319260,-332.85026815,0.00024927,2]
[320464057,1711380319283,-47377.43878495,0.00024928,2]
[320464058,1711380319306,-22243.49528755,0.00024929,2]
[320464059,1711380419322,5000.0,0.00027018,10]
[320464060,1711380427214,2990.3663564,0.00027018,10]
[320464122,1711380614717,5000.0,0.00027,10]
[320464123,1711380622555,5000.0,0.00027,10]
[320464124,1711380630741,5000.0,0.00027,10]
[320464171,1711380632551,-931.6812301,0.00021917,2]
[320464173,1711380632561,-192.551086,0.00021918,2]
[320464175,1711380632570,-192.551086,0.00022773,2]
[320464177,1711380632579,-3444.03044866,0.00022812,2]
[320464180,1711380632588,-5543.47254561,0.00022812,2]
[320464182,1711380632597,-157.74893899,0.00022812,2]
[320464185,1711380632607,-210.33950346,0.00022813,2]
[320464188,1711380632617,-877.46470654,0.00022813,2]
[320464190,1711380632625,-154.9690062,0.00022813,2]
[320464193,1711380632635,-154.9690062,0.00022813,2]
[320464194,1711380632643,-187.78507347,0.00022814,2]
[320464196,1711380632652,-154.9690062,0.00022814,2]
[320464197,1711380632661,-617.73703242,0.00022814,2]
[320464199,1711380632671,-154.9690062,0.00022814,2]
[320464200,1711380632680,-816.54193756,0.00022814,2]
[320464202,1711380632689,-275.7283,0.00022814,2]
[320464203,1711380632698,-156.44769528,0.00022815,2]
[320464205,1711380632707,-154.9690062,0.00022815,2]
[320464206,1711380632716,-1956.79393674,0.00022815,2]
[320464207,1711380632841,-405.72925592,0.00022815,2]
[320464208,1711380632851,-305.09083774,0.00022815,2]
[320464209,1711380632862,-560.02439842,0.00022815,2]
[320464210,1711380632871,-780.33195473,0.00022815,2]
[320464211,1711380632880,-683.96804349,0.00022816,2]
[320464212,1711380632888,-160.87070723,0.00022816,2]
[320464213,1711380632903,-291.35313108,0.00022816,2]
[320464214,1711380632912,-154.9690062,0.00022816,2]
[320464215,1711380632921,-187.30483325,0.00022817,2]
[320464216,1711380632930,-154.9690062,0.00022817,2]
[320464217,1711380632941,-180.22166268,0.00022817,2]
[320464218,1711380632951,-685.88747989,0.00022817,2]
[320464219,1711380632961,-205.27707627,0.00022817,2]
[320464220,1711380632972,-211.33899684,0.00022817,2]
[320464221,1711380632981,-47377.43878495,0.00022817,2]
[320464222,1711380632990,-154.9690062,0.00022818,2]
[320464223,1711380633000,-192.09614906,0.00022818,2]
[320464224,1711380633009,-322.828959,0.00022818,2]
[320464225,1711380633018,-1478.45909339,0.00022818,2]
[320464226,1711380633027,-154.9690062,0.00022819,2]
[320464227,1711380633036,-864.38002108,0.00022819,2]
[320464228,1711380633045,-920.79514438,0.00022819,2]
[320464229,1711380633054,-1888.81529834,0.0002282,2]
[320464230,1711380633063,-154.9690062,0.0002282,2]
[320464231,1711380633072,-1573.60018062,0.0002282,2]
[320464232,1711380633081,-302.59359524,0.0002282,2]
[320464233,1711380633090,-1108.54236463,0.00022829,2]
[320464234,1711380633099,-934.0238999,0.00023407,2]
[320464235,1711380633110,-192.551086,0.00023627,2]
[320464236,1711380633119,-233.05206864,0.00024326,2]
[320464237,1711380633128,-154.98238752,0.00024423,2]
[320464238,1711380633137,-226.04978715,0.00024426,2]
[320464239,1711380633146,-190.6826713,0.00024427,2]
[320464240,1711380633155,-587.23839615,0.00024427,2]
[320464241,1711380633164,-637.054145,0.00024429,2]
[320464242,1711380633174,-192.551086,0.00024482,2]
[320464243,1711380633182,-1132.4315104,0.0002511,2]
[320464244,1711380633192,-233.05206862,0.00025177,2]
[320464245,1711380633201,-2000.0,0.00025543,2]
[320464246,1711380633210,-200.0,0.00025583,2]
[320464247,1711380633218,-155.41526434,0.00025615,2]
[320464248,1711380633228,-326.46434441,0.00025615,2]
[320464249,1711380633238,-3181.0535575,0.00025615,2]
[320464250,1711380633247,-155.22747424,0.00025615,2]
[320464251,1711380633256,-242.91785712,0.00025615,2]
[320464252,1711380633265,-154.9690062,0.00025615,2]